{"text_format":"1","workbook":"xlsx","n_sheets":4,"sheets":["Formulario","ESTANDAR DE CALIDAD","Listas","Hoja2"],"not_rendered":{"charts":0,"images":3,"macros":1,"external_links":0,"defined_names":1,"comments":0,"pivot_tables":0},"unopened":[],"bounds":{"document_bytes":16777216,"sheet_cells":100000,"rows_first":2000,"rows_last":500,"rows_between":2000,"halvings":0,"cell_chars":16384,"cell_head_chars":4096},"cells_cut":0,"cells_raw":0,"read":"whole","date_system":"1900"}

{"sheet":"Formulario","index":0,"n_rows":82,"n_cols":15,"rows_kept":82,"cut":false,"hidden":false,"merged":[[3,8,6,10],[7,8,7,10],[3,5,3,7],[4,5,4,7],[5,5,5,7],[7,5,7,7],[3,11,6,11],[73,4,73,11],[28,4,28,5],[13,6,13,11],[26,6,26,11],[41,6,41,11],[57,6,57,11],[59,4,59,5],[43,6,44,6],[43,8,44,8],[43,9,44,9],[43,10,44,10],[43,4,43,5],[43,7,44,7],[28,7,29,7],[59,7,60,7],[59,6,60,6],[59,8,60,8],[59,9,60,9],[59,10,60,10],[59,11,60,11],[43,11,44,11],[28,6,29,6],[28,8,29,8],[28,9,29,9],[28,10,29,10],[28,11,29,11]]}
[]
[]
[]
[null,null,null,null,null,"Código",null,null,"Formulario de Composición Accionaria / Shareholding Composition Form"]
[null,null,null,null,null,"09-09.5-F-007-v.1"]
[null,null,null,null,null,"Fecha de emisión "]
[null,null,null,null,null,6,5,2022]
[null,null,null,null,null,"Confidencialidad",null,null,"Reservada",null,null,"NIT: 899.999.115-8"]
[]
[null,null,null,null,null,null,"TIPO DE IDENTIFICACIÓN:"]
[null,null,null,null,null,null,"No DE IDENTIFICACIÓN:"]
[null,null,null,null,null,null,"RAZÓN SOCIAL:"]
[]
[null,null,null,null,null,null,"En esta formulario se debe relacionar  la información de los accionistas o asociados que tengan directa o indirectamente mas del 5% del capital social, aporte o participación. Se deben agregar tantas líneas como sean necesarias en cada una de las tablas."]
[null,null,null,null,null,null,null,null,null,null,null,null,null,null,"Macro para agregar filas"]
[null,null,null,null,null,null,"ID","TIPO ID","Nombre / Razón Social","P. Natural / P. Jurídica","País de Origen","Participación accionaria",null,null,"Bloquear Hoja \"Listas\""]
[null,null,null,null,null,null,null,null,null,null,null,null,{"$f":"IF(AND(J17=Listas!$D$4,Formulario!L17>=5%),Listas!$D$6,\"\")","v":""},null,"Instrucciones"]
[null,null,null,null,null,null,null,null,null,null,null,null,{"$f":"IF(AND(J18=Listas!$D$4,Formulario!L18>=5%),Listas!$D$6,\"\")","v":""}]
[null,null,null,null,null,null,null,null,null,null,null,null,{"$f":"IF(AND(J19=Listas!$D$4,Formulario!L19>=5%),Listas!$D$6,\"\")","v":""}]
[null,null,null,null,null,null,null,null,null,null,null,null,{"$f":"IF(AND(J20=Listas!$D$4,Formulario!L20>=5%),Listas!$D$6,\"\")","v":""}]
[null,null,null,null,null,null,null,null,null,null,null,null,{"$f":"IF(AND(J21=Listas!$D$4,Formulario!L21>=5%),Listas!$D$6,\"\")","v":""}]
[null,null,null,null,null,null,null,null,null,null,null,null,{"$f":"IF(AND(J22=Listas!$D$4,Formulario!L22>=5%),Listas!$D$6,\"\")","v":""}]
[null,null,null,null,null,null,null,null,null,null,null,null,{"$f":"IF(AND(J23=Listas!$D$4,Formulario!L23>=5%),Listas!$D$6,\"\")","v":""}]
[null,null,null,null,null,null,null,null,null,null,null,null,{"$f":"IF(AND(J24=Listas!$D$4,Formulario!L24>=5%),Listas!$D$6,\"\")","v":""}]
[null,null,null,null,null,null,null,null,null,null,null,null,{"$f":"IF(AND(J25=Listas!$D$4,Formulario!L25>=5%),Listas!$D$6,\"\")","v":""}]
[null,null,null,null,null,null,null,null,null,null,null,{"$f":"SUM(L17:L25)","v":0},{"$f":"IF(L26>100%,Listas!D10,\"\")","v":""}]
[null,null,null,null,null,null,"Nota 1 / Note 1: Indique la composición accionaria de esta persona jurídica en la tabla de abajo. Se deben relacionar los accionistas o asociados que tengan directa o indirectamente más del 5% del capital social / Please indicate the shareholding composition of this legal entity in the table below. Shareholders or associates who have directly or indirectly more than 5% of the capital stock must be listed"]
[]
[null,null,null,null,"Repita en estas celdas el ID y Razón Social de las empresas indicadas en la tabla de arriba con una participación mayor o igual al 5%",null,"ID","TIPO ID","Nombre / Razón Social","P. Natural / P. Jurídica","País de Origen","Participación accionaria"]
[null,null,null,null,"ID ","Razón Social"]
[null,null,null,null,null,null,null,null,null,null,null,null,{"$f":"IF(AND(J31=Listas!$D$4,Formulario!L31>=5%),Listas!$D$7,\"\")","v":""},{"$f":"VLOOKUP(E31,$G$17:$L$25,5,0)","v":{"$error":"#N/A"}},{"$f":"L31*N31","v":{"$error":"#N/A"}}]
[null,null,null,null,null,null,null,null,null,null,null,null,{"$f":"IF(AND(J32=Listas!$D$4,Formulario!L32>=5%),Listas!$D$7,\"\")","v":""}]
[null,null,null,null,null,null,null,null,null,null,null,null,{"$f":"IF(AND(J33=Listas!$D$4,Formulario!L33>=5%),Listas!$D$7,\"\")","v":""}]
[null,null,null,null,null,null,null,null,null,null,null,null,{"$f":"IF(AND(J34=Listas!$D$4,Formulario!L34>=5%),Listas!$D$7,\"\")","v":""}]
[null,null,null,null,null,null,null,null,null,null,null,null,{"$f":"IF(AND(J35=Listas!$D$4,Formulario!L35>=5%),Listas!$D$7,\"\")","v":""}]
[null,null,null,null,null,null,null,null,null,null,null,null,{"$f":"IF(AND(J36=Listas!$D$4,Formulario!L36>=5%),Listas!$D$7,\"\")","v":""}]
[null,null,null,null,null,null,null,null,null,null,null,null,{"$f":"IF(AND(J37=Listas!$D$4,Formulario!L37>=5%),Listas!$D$7,\"\")","v":""}]
[null,null,null,null,null,null,null,null,null,null,null,null,{"$f":"IF(AND(J38=Listas!$D$4,Formulario!L38>=5%),Listas!$D$7,\"\")","v":""}]
[null,null,null,null,null,null,null,null,null,null,null,null,{"$f":"IF(AND(J39=Listas!$D$4,Formulario!L39>=5%),Listas!$D$7,\"\")","v":""}]
[null,null,null,null,null,null,null,null,null,null,null,null,{"$f":"IF(AND(J40=Listas!$D$4,Formulario!L40>=5%),Listas!$D$7,\"\")","v":""}]
[null,null,null,null,null,null,null,null,null,null,null,null,{"$f":"IF(L41>100%,Listas!D10,\"\")","v":""}]
[null,null,null,null,null,null,"Nota 2 / Note 2: Indique la composición accionaria de esta persona jurídica en la tabla de abajo. Se deben relacionar los accionistas o asociados que tengan directa o indirectamente más del 5% del capital social / Please indicate the shareholding composition of this legal entity in the table below. Shareholders or associates who have directly or indirectly more than 5% of the capital stock must be listed"]
[]
[null,null,null,null,"Repita en estas celdas el ID y Razón Social de las empresas indicadas en la tabla de arriba con una participación mayor o igual al 5%",null,"ID","TIPO ID","Nombre / Razón Social","P. Natural / P. Jurídica","País de Origen","Participación accionaria"]
[null,null,null,null,"ID ","Razón Social"]
[null,null,null,null,null,null,null,null,null,null,null,null,{"$f":"IF(AND(J46=Listas!$D$4,Formulario!L46>=5%),Listas!$D$8,\"\")","v":""},{"$f":"O31","v":{"$error":"#N/A"}},{"$f":"L46*N46","v":{"$error":"#N/A"}}]
[null,null,null,null,null,null,null,null,null,null,null,null,{"$f":"IF(AND(J47=Listas!$D$4,Formulario!L47>=5%),Listas!$D$8,\"\")","v":""}]
[null,null,null,null,null,null,null,null,null,null,null,null,{"$f":"IF(AND(J48=Listas!$D$4,Formulario!L48>=5%),Listas!$D$8,\"\")","v":""}]
[null,null,null,null,null,null,null,null,null,null,null,null,{"$f":"IF(AND(J49=Listas!$D$4,Formulario!L49>=5%),Listas!$D$8,\"\")","v":""}]
[null,null,null,null,null,null,null,null,null,null,null,null,{"$f":"IF(AND(J50=Listas!$D$4,Formulario!L50>=5%),Listas!$D$8,\"\")","v":""}]
[null,null,null,null,null,null,null,null,null,null,null,null,{"$f":"IF(AND(J51=Listas!$D$4,Formulario!L51>=5%),Listas!$D$8,\"\")","v":""}]
[null,null,null,null,null,null,null,null,null,null,null,null,{"$f":"IF(AND(J52=Listas!$D$4,Formulario!L52>=5%),Listas!$D$8,\"\")","v":""}]
[null,null,null,null,null,null,null,null,null,null,null,null,{"$f":"IF(AND(J53=Listas!$D$4,Formulario!L53>=5%),Listas!$D$8,\"\")","v":""}]
[null,null,null,null,null,null,null,null,null,null,null,null,{"$f":"IF(AND(J54=Listas!$D$4,Formulario!L54>=5%),Listas!$D$8,\"\")","v":""}]
[null,null,null,null,null,null,null,null,null,null,null,null,{"$f":"IF(AND(J55=Listas!$D$4,Formulario!L55>=5%),Listas!$D$8,\"\")","v":""}]
[null,null,null,null,null,null,null,null,null,null,null,null,{"$f":"IF(AND(J56=Listas!$D$4,Formulario!L56>=5%),Listas!$D$8,\"\")","v":""}]
[null,null,null,null,null,null,null,null,null,null,null,null,{"$f":"IF(L57>100%,Listas!D10,\"\")","v":""}]
[null,null,null,null,null,null,"Nota 3 / Note 3: Indique la composición accionaria de esta persona jurídica en la tabla de abajo. Se deben relacionar los accionistas o asociados que tengan directa o indirectamente más del 5% del capital social / Please indicate the shareholding composition of this legal entity in the table below. Shareholders or associates who have directly or indirectly more than 5% of the capital stock must be listed"]
[]
[null,null,null,null,"Repita en estas celdas el ID y Razón Social de las empresas indicadas en la tabla de arriba con una participación mayor o igual al 5%",null,"ID","TIPO ID","Nombre / Razón Social","P. Natural / P. Jurídica","País de Origen","Participación accionaria"]
[null,null,null,null,"ID ","Razón Social"]
[null,null,null,null,null,null,null,null,null,null,null,null,null,{"$f":"O46","v":{"$error":"#N/A"}},{"$f":"L62*N62","v":{"$error":"#N/A"}}]
[]
[]
[]
[]
[]
[]
[]
[]
[]
[]
[null,null,null,null,null,null,null,null,null,null,null,null,{"$f":"IF(L73>100%,Listas!D10,\"\")","v":""}]
[null,null,null,null,"Declaro bajo la gravedad de juramento y con pleno conocimiento de las sanciones determinadas por el Código Penal, que los accionistas o asociados que tienen directa o indirectamente mas del 5% del capital social estan listados en las tablas de arriba. I declare under oath and with full knowledge of the penalties determined by the Penal Code, that Shareholders or associates who have directly or indirectly more than 5% of the capital stock are listed in the tables above."]
[]
[]
[]
[]
[null,null,null,null,"Firma Representante Legal"]
[null,null,null,null,"Nombres y Apellidos:"]
[null,null,null,null,"Documento de Identidad:"]
[null,null,null,null,"Fecha de diligenciamiento:"]

{"sheet":"ESTANDAR DE CALIDAD","index":1,"n_rows":22,"n_cols":27,"rows_kept":22,"cut":false,"hidden":false,"merged":[[16,0,16,12],[16,13,16,25],[16,26,16,38],[20,0,20,38],[21,0,21,38],[13,0,13,38],[14,0,14,12],[14,13,14,25],[14,26,14,38],[15,0,15,12],[15,13,15,25],[15,26,15,38],[7,0,7,12],[7,13,7,25],[7,26,7,38],[8,0,8,12],[8,13,8,25],[8,26,8,38],[0,0,0,7],[0,8,0,32],[0,33,5,38],[1,0,1,7],[1,8,4,32],[2,0,2,7],[3,0,4,2],[3,3,4,4],[3,5,4,7],[5,0,5,7],[5,8,5,22]]}
["Código",null,null,null,null,null,null,null,"FORMATO"]
["09-09.5-F-007-v.1",null,null,null,null,null,null,null,"Formulario de Composición Accionaria / Shareholding Composition Form"]
["Fecha de emisión"]
[6,null,null,"5",null,2022]
[]
["Confidencialidad",null,null,null,null,null,null,null,"Reservada"]
[]
["Elaborado por:",null,null,null,null,null,null,null,null,null,null,null,null,"Revisado por:",null,null,null,null,null,null,null,null,null,null,null,null,"Aprobado por:"]
["JHON JAIRO ROSAS ALBA \nOficial de Cumplimiento",null,null,null,null,null,null,null,null,null,null,null,null,"JHON JAIRO ROSAS ALBA \nOficial de Cumplimiento",null,null,null,null,null,null,null,null,null,null,null,null,"ALEXANDRA  CORREA GUTIERREZ \nSecretaría General"]
[]
[]
[]
[]
["Control de Cambios: "]
["Versión",null,null,null,null,null,null,null,null,null,null,null,null,"Descripción del Cambio",null,null,null,null,null,null,null,null,null,null,null,null,"Fecha del Cambio"]
["1.0",null,null,null,null,null,null,null,null,null,null,null,null,"Creación del documento",null,null,null,null,null,null,null,null,null,null,null,null,"6 de mayo de 2022"]
[]
[]
[]
[]
["07-07.7-F-024-v.3                                                                                                                                                                                                                                                      02/03/2021"]
["“Una vez impreso este documento, se considerará documento no controlado”.                                                                                                             Pág. 1"]

{"sheet":"Listas","index":2,"n_rows":10,"n_cols":4,"rows_kept":10,"cut":false,"hidden":true,"merged":[]}
[]
[]
[null,null,null,"Persona Natural / Natural Person"]
[null,null,null,"Persona Jurídica / Legal Entity"]
[]
[null,null,null,"Ver Nota 1 / See Note 1"]
[null,null,null,"Ver Nota 2 / See Note 2"]
[null,null,null,"Ver Nota 3 / See Note 3"]
[]
[null,null,null,"El porcentaje no puede ser mayor a 100%"]

{"sheet":"Hoja2","index":3,"n_rows":0,"n_cols":0,"rows_kept":0,"cut":false,"hidden":true,"merged":[]}